Cogmind - Beta 11.1 @@@ ROGUE MODE // 2022.06.19 @ 13:10:02 Player: Man Suit Result: Destroyed by D-53 Grenadier with Mini Grenade Launcher Performance ------------- Evolutions (0) 0 Regions Visited (4) 800 Robots Destroyed (7) 35 Value Destroyed (76) 76 Prototype IDs (4) 80 Alien Tech Used (0) 0 Bonus (112) 112 TOTAL SCORE: 1103 Bonus ------- Follower Combat Kills 7 Aligned with FarCom 300 Friendly Fire -195 Cogmind --------- Core Integrity 0/250 Matter 142/300 Energy 75/100 System Corruption 0% Temperature Cool (31) Movement Flying (40) Location -9/Mines Parts ------- > --- POWER (1) -------- (None) > --- PROPULSION (2) --- Flight Unit > --- UTILITY (2) ------ Experimental Sensor Array > --- WEAPON (2) ------- Assault Rifle > --- INVENTORY (5) ---- Aluminum Leg High-capacity Matter Pod (200) Particle Gun Peak State ------------ > --- POWER ------------ Light Ion Engine > --- PROPULSION ------- Aluminum Leg Aluminum Leg > --- UTILITY ---------- Sensor Array > --- WEAPON ----------- AWS/Gauss > --- INVENTORY -------- Ion Engine Flight Unit Flight Unit High-capacity Matter Pod Light Assault Rifle [Rating: 20] Favorites ----------- Power Light Ion Engine Engine Light Ion Engine Propulsion Aluminum Leg Leg Aluminum Leg Flight Unit Flight Unit Utility Sensor Array Device Sensor Array Storage Small Storage Unit Processor 0b10 Alert Chip Weapon Assault Rifle Ballistic Gun Assault Rifle Launcher Grenade Launcher Build | -11 -10 -10 -10 -9 ------- Run | Scr Mat Min Exi Min Slots Evolved . | . . . . . Power . | . . . . . Propulsion . | . . . . . Utility . | . . . . . Weapon . | . . . . . Parts Attached 20 | 6 2 1 5 6 Power 2 | 1 . . . 1 Engine 2 | 1 . . . 1 Core . | . . . . . Reactor . | . . . . . Propulsion 4 | 2 . . . 2 Treads . | . . . . . Leg 2 | 2 . . . . Wheel . | . . . . . Hover . | . . . . . Flight 2 | . . . . 2 Utility 6 | 1 2 . 2 1 Device 4 | . 2 . 1 1 Storage 1 | 1 . . . . Processor 1 | . . . 1 . Hackware . | . . . . . Protection . | . . . . . Artifact . | . . . . . Weapon 8 | 2 . 1 3 2 Energy Gun . | . . . . . Energy Cannon . | . . . . . Ballistic Gun 5 | 2 . . 2 1 Ballistic Cannon . | . . . . . Launcher 3 | . . 1 1 1 Special Weapon . | . . . . . Impact Weapon . | . . . . . Slashing Weapon . | . . . . . Piercing Weapon . | . . . . . Special Melee Weapon . | . . . . . Unidentified Prototypes 4 | . . . 3 1 Parts Lost 6 | . . . . 6 Power 1 | . . . . 1 Propulsion 2 | . . . . 2 Utility 1 | . . . . 1 Weapon 2 | . . . . 2 Highest Loss Streak 6 | . . . . 6 To Critical Strikes . | . . . . . Average Slot Usage (%) 99 | . 98 100 98 99 Engine 14 | . 14 14 14 14 Leg 27 | . 28 28 28 27 Device 23 | . 21 28 24 14 Processor 4 | . . . 3 14 Ballistic Gun 14 | . 28 14 13 13 Launcher 12 | . . 14 13 14 Naked Turns . | . . . . . Heaviest Build 12 | 11 12 10 10 11 Greatest Support 20 | 20 20 20 20 20 Greatest Overweight (x) . | . . . . . Average Overweight (x) . | . . . . . Largest Inventory Capacity 8 | 8 8 5 5 5 Average Capacity 5 | 7 6 5 5 5 Most Carried 6 | 6 6 5 5 5 Average Carried 4 | 3 5 4 5 4 Final Capacity 8 | 8 5 5 5 5 Final Carried 6 | 6 5 5 5 3 Class Distribution -------------------- 99% | Mutant Dominant Class ---------------- Mutant | -10/Materials Mutant | -10/Mines Mutant | -10/Exiles Mutant | -9/Mines Resources | -11 -10 -10 -10 -9 ----------- Run | Scr Mat Min Exi Min Matter Collected 373 | 190 82 56 . 45 Remotely . | . . . . . Salvage Created 102 | . 28 24 . 50 Parts 14 | . 2 11 . 1 Haulers Intercepted . | . . . . . Recyclers Shooed . | . . . . . Parts Field Recycled . | . . . . . Retrieved Matter . | . . . . . Parts Self-Destructed . | . . . . . Prevented . | . . . . . Kills | -11 -10 -10 -10 -9 ------- Run | Scr Mat Min Exi Min Combat Hostiles Destroyed 17 | . . 5 . 12 AOE 17 | . . 5 . 12 Classes Destroyed 4 | . 1 1 . 2 Watcher 1 | . 1 . . . Swarmer 5 | . . 5 . . Grunt 1 | . . . . 1 Assembled 12 | . . . . 12 Best Kill Streak 12 | . 1 3 . 12 Combat Bots Only 12 | . . 3 . 12 Max Kills in Single Turn 3 | . 1 2 . 3 Gunslinging . | . . . . . Exploded 3 | . . 2 . 3 Melee . | . . . . . Uniques/NPCs Destroyed . | . . . . . Combat | -11 -10 -10 -10 -9 -------- Run | Scr Mat Min Exi Min Damage Taken 653 | . . 7 . 646 Core 251 | . . . . 251 Absorbed by Shields . | . . . . . Core Remaining (%) 100 | 100 . . . . Volleys Fired 17 | . 2 3 . 12 Largest 2 | . 2 1 . 1 Hottest 40 | . 40 30 . 33 Shots Fired 19 | . 4 3 . 12 Gun 4 | . 4 . . . Cannon . | . . . . . Launcher 15 | . . 3 . 12 Special . | . . . . . Kinetic 4 | . 4 . . . Thermal . | . . . . . Explosive 15 | . . 3 . 12 Electromagnetic . | . . . . . Robot Hit Streak 7 | . 1 4 . 7 Robot Miss Streak 1 | . 1 . . 1 Penetration Max . | . . . . . Secondary Targets . | . . . . . Shots Hit Robots 10 | . 2 3 . 5 Core Hits 39 | . 1 5 . 33 Critical Kills . | . . . . . Critical Parts Destroyed . | . . . . . Critical Strikes . | . . . . . Melee Attacks . | . . . . . Impact . | . . . . . Slashing . | . . . . . Piercing . | . . . . . Sneak Attacks . | . . . . . Combat Hostiles . | . . . . . Follow-up Attacks . | . . . . . Damage Inflicted 1372 | . 27 283 . 1062 Guns 27 | . 27 . . . Cannons . | . . . . . Explosions 1345 | . . 283 . 1062 Melee . | . . . . . Ramming . | . . . . . Kinetic 27 | . 27 . . . Thermal . | . . . . . Explosive 1345 | . . 283 . 1062 Electromagnetic . | . . . . . Impact . | . . . . . Slashing . | . . . . . Piercing . | . . . . . Highest Corruption . | . . . . . Average Corruption . | . . . . . Corruption Purged . | . . . . . Corruption Blocked . | . . . . . Overload Shots . | . . . . . Overflow Damage 11 | . . 1 . 10 Projectiles . | . . . . . Explosions 11 | . . 1 . 10 Melee . | . . . . . Knockbacks . | . . . . . Impact . | . . . . . Kinetic . | . . . . . Secondary . | . . . . . Self-Inflicted Damage 29 | . . . . 29 Shots 1 | . . . . 1 Rammed . | . . . . . Targets Rammed . | . . . . . Kicked . | . . . . . Crushed . | . . . . . Highest Temperature 53 | . . . . 53 Average Temperature 31 | . . . . 31 Received Heat Transfer 100 | . . . . 100 Siege Activations . | . . . . . Robots Corrupted . | . . . . . Combat Hostiles . | . . . . . Parts Fried . | . . . . . Impact Corruptions . | . . . . . Robots Melted . | . . . . . Combat Hostiles . | . . . . . Parts Melted . | . . . . . Heat Transferred . | . . . . . Parts Sabotaged . | . . . . . Parts Stolen . | . . . . . Parts Stripped . | . . . . . Power Chain Reactions . | . . . . . Missiles Intercepted . | . . . . . Alert | -11 -10 -10 -10 -9 ------- Run | Scr Mat Min Exi Min Peak Influence 127 | . 26 127 . 101 Initial 9 | . . 9 . . Average 53 | . 6 92 . 4 Maximum Alert Level . | . . . . . Low Security (%) 100 | 100 100 100 . 100 Level 1 . | . . . . . Level 2 . | . . . . . Level 3 . | . . . . . Level 4 . | . . . . . Level 5 . | . . . . . High Security . | . . . . . Max Security . | . . . . . Squads Dispatched . | . . . . . Investigation . | . . . . . Extermination . | . . . . . Reinforcement . | . . . . . Assault . | . . . . . Garrison . | . . . . . Intercept . | . . . . . Searches Triggered . | . . . . . Construction Impeded . | . . . . . Haulers Reinforced . | . . . . . Active Scanning Responses . | . . . . . Cargo Convoy Interrupts . | . . . . . Stealth | -11 -10 -10 -10 -9 --------- Run | Scr Mat Min Exi Min Distress Signals . | . . . . . Communications Jammed . | . . . . . Distress Signals . | . . . . . Times Spotted 29 | . 1 6 . 22 Peak Tracking Total 14 | . 1 3 . 14 Tactical Retreats . | . . . . . Traps | -11 -10 -10 -10 -9 ------- Run | Scr Mat Min Exi Min Traps Triggered . | . . . . . Indirectly . | . . . . . Trap Hack Attempts . | . . . . . Triggered . | . . . . . Disarmed . | . . . . . Reprogrammed . | . . . . . Reused . | . . . . . Traps Extracted . | . . . . . Installed . | . . . . . Triggered . | . . . . . Machines | -11 -10 -10 -10 -9 ---------- Run | Scr Mat Min Exi Min Machines Disabled 1 | . . 1 . . Max in Single Turn 1 | . . 1 . . Machines Sabotaged . | . . . . . Garrisons Compromised . | . . . . . Overloaded Fab Kills . | . . . . . Hacking | -11 -10 -10 -10 -9 --------- Run | Scr Mat Min Exi Min Machines Accessed 7 | . 3 . 4 . Terminals 3 | . 3 . . . Fabricators . | . . . . . Repair Stations . | . . . . . Recycling Units . | . . . . . Scanalyzers . | . . . . . Garrison Access . | . . . . . Total Hacks 56 | . 7 . 49 . Successful 52 | . 3 . 49 . Failed 4 | . 4 . . . Catastrophic 1 | . 1 . . . Database Lockouts . | . . . . . Manual 3 | . 2 . 1 . Terminals 7 | . 7 . . . Fabricators . | . . . . . Repair Stations . | . . . . . Recycling Units . | . . . . . Scanalyzers . | . . . . . Garrison Access . | . . . . . Terminal Hacks 51 | . 2 . 49 . Record 49 | . . . 49 . Locate Traps 1 | . 1 . . . Zone Layout 1 | . 1 . . . Fabricator Hacks . | . . . . . Repair Station Hacks . | . . . . . Recycling Unit Hacks . | . . . . . Scanalyzer . | . . . . . Garrison Access Hacks . | . . . . . Unauthorized Hacks 1 | . 1 . . . Terminals 1 | . 1 . . . Botnet 1 | . 1 . . . Fabricators . | . . . . . Repair Stations . | . . . . . Recycling Units . | . . . . . Scanalyzers . | . . . . . Garrison Access . | . . . . . Data Cores Recovered . | . . . . . Used . | . . . . . Hacking Detections 2 | . 2 . . . Full Trace Events 1 | . 1 . . . Feedback Events . | . . . . . Feedback Blocked . | . . . . . Robot Schematics Acquired . | . . . . . Robots Built . | . . . . . Authchips . | . . . . . Time . | . . . . . Total Robot Build Rating . | . . . . . Part Schematics Acquired . | . . . . . Parts Built . | . . . . . Authchips . | . . . . . Time . | . . . . . Total Part Build Rating . | . . . . . Parts Repaired . | . . . . . Time . | . . . . . Parts Recycled . | . . . . . Recycled Matter . | . . . . . Retrieved Matter . | . . . . . Retrieved Components . | . . . . . Parts Scanalyzed . | . . . . . Part Schematics Acquired . | . . . . . Parts Damaged . | . . . . . Bothacking | -11 -10 -10 -10 -9 ------------ Run | Scr Mat Min Exi Min Used RIF Installer . | . . . . . Robots Hacked . | . . . . . Non-combat . | . . . . . Combat . | . . . . . Robot Hacks Applied . | . . . . . Relay Couplers Released . | . . . . . Fabnet Peak Effective % . | . . . . . Robots Rewired . | . . . . . Allies Hacked . | . . . . . Hacks Repelled . | . . . . . Allies | -11 -10 -10 -10 -9 -------- Run | Scr Mat Min Exi Min Total Allies 5 | . . 2 . 3 Largest Group 3 | . . 2 2 3 Highest-Rated Group 42 | . . 42 42 40 Highest-Rated Ally 31 | . . 31 31 16 Total Orders . | . . . . . Ally Attacks 33 | . . 1 . 32 Total Damage 288 | . . 21 . 267 Kills 7 | . . 1 . 6 Allies Corrupted . | . . . . . Allies Melted . | . . . . . Intel | -11 -10 -10 -10 -9 ------- Run | Scr Mat Min Exi Min Robot Analysis Total . | . . . . . Derelict Logs Recovered 2 | . . 1 . 1 Drone Launches . | . . . . . Drone Recoveries . | . . . . . Exploration | -11 -10 -10 -10 -9 ------------- Run | Scr Mat Min Exi Min Turns Passed 2188 | 80 151 916 547 494 Spaces Moved 1697 | 62 116 692 448 379 Core 13 | 13 . . . . Treads . | . . . . . Legs 1684 | 49 116 692 448 379 Wheels . | . . . . . Hover . | . . . . . Flight . | . . . . . Fastest Speed 50 | 50 120 120 120 120 Average Speed 119 | 105 120 120 120 120 Slowest Speed 120 | 120 120 120 120 120 Overloaded Moves . | . . . . . Propulsion Burnouts . | . . . . . Robots Hopped . | . . . . . Cave-ins Triggered . | . . . . . Exploration Rate (%) 56 | 4 21 99 73 83 Regions Visited 4 Branch Regions 3 Pre-discovered Areas 2 | . . 1 1 . Known Exits Taken . | . . . . . Unknown Exits Taken 4 | 1 1 1 1 . Scrap Searched 2 | . . 1 . 1 Spaces Dug . | . . . . . Terrain Destroyed 106 | . . 26 . 80 Melee . | . . . . . Projectile . | . . . . . AOE 106 | . . 26 . 80 Terrain Rammed . | . . . . . Walls Destroyed . | . . . . . Machines Disabled . | . . . . . Actions | -11 -10 -10 -10 -9 --------- Run | Scr Mat Min Exi Min Total 1838 | 73 124 777 457 407 Wait 77 | . 1 72 . 4 Move 1693 | 61 115 691 447 379 Hop . | . . . . . Pick Up 14 | 6 1 5 . 2 Fast Attach 14 | 6 2 . 5 1 Attach 4 | . . 1 . 3 Detach 1 | . . . . 1 Swap 2 | . . . . 2 Drop 16 | . 3 5 5 3 Fire 17 | . 2 3 . 12 Melee . | . . . . . Ram . | . . . . . Kick . | . . . . . Crush . | . . . . . Escape Stasis . | . . . . . Rewire . | . . . . . Trap . | . . . . . Miscellaneous . | . . . . . Route ------- -11/Scrapyard -10/Materials -10/Mines (discovered 3 exits: [*Mat x2] / *Exi) -10/Exiles (discovered 2 exits: [*Min x2]) -9/Mines (discovered 2 exits: *Mat x2) History --------- Turn | Location | Event 37 | -11/Scrapyard | Discovered new exit (range 14) 81 | -11/Scrapyard | Entered Materials 194 | -10/Materials | Discovered new exit (range 12) 232 | -10/Materials | Entered Mines 311 | -10/Mines | Build established: Mutant 322 | -10/Mines | Discovered new exit (range 7) 409 | -10/Mines | Discovered new exit (range 7) 410 | -10/Mines | Learned location of Storage (-9) 481 | -10/Mines | Deemed a non-threat by the Exiles lab entrance 482 | -10/Mines | Discovered new exit (range 5) 569 | -10/Mines | A weapon hastily lodged in a ceiling crevice suddenly fell to the ground 1148 | -10/Mines | Entered Exiles 1148 | -10/Exiles | Accompanied by 2 allies 1170 | -10/Exiles | Discovered new exit (range 15) 1178 | -10/Exiles | Led the pair of lost Derelicts to a safe place 1196 | -10/Exiles | Met 8R-AWN 1214 | -10/Exiles | Met EX-HEX 1277 | -10/Exiles | Met EX-DEC 1348 | -10/Exiles | Discovered new exit (range 14) 1429 | -10/Exiles | Learned location of Zion (-7) 1466 | -10/Exiles | Met EX-BIN 1492 | -10/Exiles | Aligned with FarCom system 1493 | -10/Exiles | Given EX-Vault access code 1544 | -10/Exiles | Opened EX-Vault 1553 | -10/Exiles | Found Prototype Device 1553 | -10/Exiles | Identified Cloak of Protection 1567 | -10/Exiles | Found Prototype Ballistic Gun 1567 | -10/Exiles | Identified AWS/Gauss 1578 | -10/Exiles | Found Prototype Processor 1578 | -10/Exiles | Identified 0b10 Alert Chip 1603 | -10/Exiles | Exiles lab attacked by MAIN.C 1695 | -10/Exiles | Left Exiles lab with 0b10 Alert Chip 1695 | -10/Exiles | Entered Mines 1747 | -9/Mines | Found a damaged Exp. Sensor Array with a note attached 1752 | -9/Mines | Found Prototype Device 1752 | -9/Mines | Identified Exp. Sensor Array 1861 | -9/Mines | Discovered new exit (range 15) 1931 | -9/Mines | Assisted by bots powering up and referring to "LRC-V3" 1997 | -9/Mines | Received a Rocket Launcher from a helpful Derelict 2073 | -9/Mines | Identified exit to Materials 2151 | -9/Mines | Assembled infested the area 2186 | -9/Mines | Core integrity fell below 50% 2189 | -9/Mines | Core integrity fell below 20% 2189 | -9/Mines | Destroyed by D-53 Grenadier with Mini Grenade Launcher Last Messages --------------- 02171_ as-32957 destroyed. 02172_ U-05 Engineer lays Concrete. 02174_ as-23357 destroyed. 02174_ U-05 Engineer lays Concrete. 02175_ Trooper 2a destroyed. 02175_ Aluminum Leg destroyed. 02175_ Destroyed Aluminum Leg. 02178_ as-97433 destroyed. 02180_ as-39626 destroyed. 02181_ Trooper 2b destroyed. 02182_ Acquired 33 matter. 02182_ Grenade Launcher destroyed. 02182_ Ion Engine destroyed. 02182_ as-33826 destroyed. 02182_ Mercenary 2a destroyed. 02185_ Critical hit (Burn: +80). 02185_ as-18817 destroyed. 02188_ Rocket Launcher destroyed. 02188_ Flight Unit destroyed. 02188_ 0b10 Alert Chip destroyed. Map ----- +----------------------------------------------------+ | ??????## * ##??## ####### # | | ???????# #????# # | | ???????## ## #????# ######## # | | ????????###### ##????## ##??????# # | | ?????????????# ##??????############ # | | ?????????????## ##?????????# # | | ??????????????####??????????# ![ # | | ????????????????????????????# ########## | | ????????????????????????????# #????????? | | ????????????????????????????# #####?###? | | ?????????????? ???####???## ### ## | | ???????????## ??## ##?## | | ??????????## ### ### ## | | ???????#### # ##? | | ???????# ? ####?? | | ???????# #### ##????? | | ???????# #### ### ##??#####?????? | | ???????# #??## ###?####?????????????? | | ???????# #???# dd ##????????????????????? | | ???????# #???## #????????????????###### | | ???????# #???# ##???????????????# | | ???????# #??## ##??????????????# #### | | ???????# #?## ###????????????# ##?? | | ???????#?#?# #???????????## ##? | | ???????# #?# ##??????????# ## | | ???????# #?# @ #??????????# | | ???????# #?# #??????????## | | ???????? ??# ###???????????## | | ???????? ??## ?????????????## | | ???????? ???## #?????????????### | | ???????? ????### #???????????????? | | ???????? ??????# ##???????????????? | | ???????? ??????# #????????????????? | | ????????#??????# #????????????????? | | ???????????????# ????????????????? | | ???????????????# #???????????????? | | ???????????????? #???????????????? | | ????????????????# ##???????????????? | | ????????????????? # ##????????????????? | | ?????????????????### ??????????????????? | | ??????????g?????????????????????????????? | | ?????????g??????????????????????????????? | | ????????